lending/lending_fUSD_20240111
["ID","MTS","AMOUNT","RATE_DAILY","PERIOD"]
[311211788,1704983456115,-4691.0444,0.000398,10]
[311211789,1704983456124,-3908.4083,0.000398,2]
[311211790,1704983456134,-318.779,0.000398,2]
[311211791,1704983456143,-37929.8552,0.000398,2]
[311211792,1704983456153,-150.46862198,0.00039871,6]
[311211793,1704983456163,-151.65502897,0.00039876,7]
[311211794,1704983456172,-250.0,0.000399,2]
[311211795,1704983456182,-39789.9313,0.000399,2]
[311211796,1704983456192,-7500.0,0.000399,2]
[311211797,1704983456201,-62327.77785575,0.000399,2]
[311211798,1704983456437,-11378.14006484,0.000399,2]
[311211799,1704983456476,-500.0,0.00039178,4]
[311211800,1704983456485,-270.0,0.00039178,4]
[311211801,1704983456497,-230.0,0.00039178,4]
[311211802,1704983456507,-500.0,0.00039726,4]
[311211803,1704983456516,-1291.32868919,0.000399,2]
[311211804,1704983456528,-1432.18835877,0.000399,2]
[311211805,1704983456539,-550.99479172,0.000399,2]
[311211806,1704983456554,-968.60609467,0.000399,2]
[311211807,1704983456566,-956.88669112,0.000399,2]
[311211808,1704983456579,-5964.47929686,0.000399,2]
[311211809,1704983456773,-205.0,0.00037533,2]
[311211810,1704983456782,-220.01602482,0.0003778,2]
[311211811,1704983456792,-310.90656263,0.00037999,2]
[311211812,1704983456805,-124.14006257,0.00037999,2]
[311211813,1704983456814,-390.25082271,0.00037999,2]
[311211814,1704983456823,-454.15973373,0.00037999,2]
[311211815,1704983456835,-536.979221,0.00037999,2]
[311211816,1704983456847,-43.24607407,0.00037999,2]
[311211817,1704983456857,-3362.58532658,0.000389,2]
[311211818,1704983456866,-272.29,0.00039168,10]
[311211819,1704983456876,-130.38999935,0.00039178,4]
[311211820,1704983456887,-369.61000065,0.00039178,4]
[311211821,1704983456896,-500.0,0.00039178,4]
[311211822,1704983456906,-230.56,0.00039178,4]
[311211823,1704983456915,-500.0,0.00039178,4]
[311211824,1704983456924,-500.0,0.00039452,4]
[311211825,1704983456934,-15129.59815708,0.000399,2]
[311211826,1704983456944,-2000.0,0.000399,4]
[311211827,1704983456954,-74184.125,0.000399,2]
[311211828,1704983456964,-1000.0,0.000399,15]
[311211829,1704983456973,-1871.62,0.000399,7]
[311211830,1704983456983,-500.0,0.000399,2]
[311211831,1704983456993,-151.0,0.000399,7]
[311211832,1704983457003,-151.0,0.000399,7]
[311211833,1704983457012,-151.0,0.000399,7]
[311211834,1704983457022,-153.3,0.000399,3]
[311211835,1704983457032,-153.3,0.000399,3]
[311211836,1704983457042,-153.3,0.000399,3]
[311211837,1704983457051,-153.3,0.000399,3]
[311211838,1704983457061,-153.3,0.000399,3]
[311211839,1704983457070,-153.3,0.000399,3]
[311211840,1704983457084,-153.3,0.000399,3]
[311211841,1704983457093,-153.3,0.000399,3]
[311211842,1704983457103,-153.3,0.000399,3]
[311211843,1704983457112,-153.3,0.000399,3]
[311211844,1704983457123,-153.3,0.000399,3]
[311211845,1704983457133,-153.3,0.000399,3]
[311211846,1704983457142,-153.3,0.000399,3]
[311211847,1704983457153,-150.39396378,0.00039952,7]
[311211848,1704983457162,-167.0,0.0003997,2]
[311211849,1704983457172,-1995.0,0.0003999,3]
[311211850,1704983457182,-500.0,0.00039999,4]
[311211851,1704983457192,-500.0,0.00039999,4]
[311211852,1704983457201,-500.0,0.00039999,4]
[311211853,1704983457211,-350.30710083,0.00039999,4]
[311211854,1704983457220,-500.0,0.00039999,4]
[311211855,1704983457230,-500.0,0.00039999,4]
[311211856,1704983457239,-400.61352845,0.00039999,4]
[311211857,1704983457248,-421.68968695,0.00039999,4]
[311211858,1704983457258,-500.0,0.00039999,4]
[311211859,1704983457267,-500.0,0.00039999,4]
[311211860,1704983457423,-500.0,0.00039999,4]
[311211861,1704983457433,-500.0,0.00039999,4]
[311211862,1704983457443,-500.0,0.00039999,4]
[311211863,1704983457452,-500.0,0.00039999,4]
[311211864,1704983457461,-500.0,0.00039999,4]
[311211865,1704983457470,-500.0,0.00039999,4]
[311211866,1704983457480,-500.0,0.00039999,4]
[311211867,1704983457489,-500.0,0.00039999,4]
[311211868,1704983457498,-500.0,0.00039999,4]
[311211869,1704983457507,-552.19086325,0.00039999,4]
[311211870,1704983457517,-164.24,0.00039999,4]
[311211871,1704983457526,-357.36672631,0.00039999,4]
[311211872,1704983457535,-392.23362222,0.00039999,4]
[311211873,1704983457544,-415.21178518,0.00039999,4]
[311211874,1704983457554,-150.0,0.00039999,4]
[311211875,1704983457563,-350.0,0.00039999,4]
[311211876,1704983457573,-194.63988589,0.00039999,7]
[311211877,1704983457585,-348.13517704,0.00039999,7]
[311211878,1704983457594,-470.06241613,0.0004,120]
[311211879,1704983457605,-487367.65543971,0.0004,15]
[311211880,1704983457615,-956.60549549,0.0004,2]
[311211881,1704983457625,-20663.85720047,0.0004,4]
[311211882,1704983457634,-155.0,0.0004,2]
[311211883,1704983457643,-350.0,0.0004,120]
[311211884,1704983457653,-22008.0721351,0.0004,4]
[311211885,1704983457663,-18841.97927178,0.0004,10]
[311211886,1704983457673,-400.0,0.0004,120]
[311211887,1704983457683,-5844.14,0.0004,7]
[311211888,1704983457694,-8259.38,0.0004,7]
[311211889,1704983457705,-2283.1684407,0.0004,2]
[311211890,1704983457715,-500.0,0.0004,4]
[311211891,1704983457725,-500.0,0.0004,4]
[311211892,1704983457737,-500.0,0.0004,4]
[311211893,1704983457753,-500.0,0.0004,7]
[311211894,1704983457764,-151.0,0.0004,7]
[311211895,1704983457774,-591.11,0.0004,4]
[311211896,1704983457785,-500.0,0.0004,4]
[311211897,1704983457795,-500.0,0.0004,4]
[311211898,1704983457805,-151.0,0.0004,7]
[311211899,1704983457814,-151.0,0.0004,7]
[311211900,1704983457824,-151.0,0.0004,7]
[311211901,1704983457842,-500.0,0.0004,4]
[311211902,1704983457852,-477.54,0.0004,4]
[311211903,1704983457861,-592.44,0.0004,4]
[311211904,1704983457872,-151.0,0.0004,7]
[311211905,1704983457881,-500.0,0.0004,4]
[311211906,1704983457890,-982.392208,0.0004,7]
[311211907,1704983457898,-500.0,0.0004,4]
[311211908,1704983457908,-982.392208,0.0004,7]
[311211909,1704983457918,-151.0,0.0004,7]
[311211910,1704983457928,-968.57,0.0004,4]
[311211911,1704983457941,-546.973364,0.0004,7]
[311211912,1704983457952,-500.0,0.0004,4]
[311211913,1704983457963,-546.973364,0.0004,7]
[311211914,1704983457973,-500.0,0.0004,4]
[311211915,1704983457985,-500.0,0.0004,4]
[311211916,1704983457997,-500.0,0.0004,4]
[311211917,1704983458008,-500.0,0.0004,4]
[311211918,1704983458019,-846.71,0.0004,4]
[311211919,1704983458031,-500.0,0.0004,4]
[311211920,1704983458049,-500.0,0.0004,4]
[311211921,1704983458061,-505.5,0.0004,4]
[311211922,1704983458072,-1458.29,0.0004,4]
[311211923,1704983458089,-500.0,0.0004,4]
[311211924,1704983458101,-500.0,0.0004,4]
[311211925,1704983458112,-500.0,0.0004,4]
[311211926,1704983458123,-752.08,0.0004,4]
[311211927,1704983458134,-500.0,0.0004,4]
[311211928,1704983458145,-500.0,0.0004,4]
[311211929,1704983458156,-500.0,0.0004,4]
[311211930,1704983458167,-500.0,0.0004,4]
[311211931,1704983458180,-500.0,0.0004,4]
[311211932,1704983458191,-500.0,0.0004,5]
[311211933,1704983458202,-500.0,0.0004,4]
[311211934,1704983458213,-500.0,0.0004,4]
[311211935,1704983458224,-500.0,0.0004,4]
[311211936,1704983458236,-500.0,0.0004,4]
[311211937,1704983458247,-500.0,0.0004,4]
[311211938,1704983458258,-500.0,0.0004,4]
[311211939,1704983458269,-981.28,0.0004,4]
[311211940,1704983458280,-500.0,0.0004,4]
[311211941,1704983458291,-500.0,0.0004,4]
[311211942,1704983458301,-500.0,0.0004,4]
[311211943,1704983458312,-500.0,0.0004,4]
[311211944,1704983458322,-660.19,0.0004,4]
[311211945,1704983458337,-500.0,0.0004,4]
[311211946,1704983458347,-500.0,0.0004,4]
[311211947,1704983458359,-500.0,0.0004,4]
[311211948,1704983458369,-500.0,0.0004,4]
[311211949,1704983458379,-500.0,0.0004,4]
[311211950,1704983458390,-500.0,0.0004,4]
[311211951,1704983458400,-1453.5,0.0004,4]
[311211952,1704983458411,-501.7,0.0004,4]
[311211953,1704983458420,-500.0,0.0004,4]
[311211954,1704983458430,-264.33,0.0004,4]
[311211955,1704983458439,-500.0,0.0004,4]
[311211956,1704983458449,-500.0,0.0004,4]
[311211957,1704983458459,-500.0,0.0004,4]
[311211958,1704983458469,-500.0,0.0004,4]
[311211959,1704983458479,-164.595748,0.0004,7]
[311211960,1704983458489,-500.0,0.0004,4]
[311211961,1704983458499,-500.0,0.0004,4]
[311211962,1704983458508,-500.0,0.0004,4]
[311211963,1704983458519,-151.0,0.0004,7]
[311211964,1704983458528,-500.0,0.0004,4]
[311211965,1704983458537,-500.0,0.0004,4]
[311211966,1704983458547,-493.56,0.0004,4]
[311211967,1704983458557,-500.0,0.0004,4]
[311211968,1704983458567,-500.0,0.0004,4]
[311211969,1704983458582,-628.47,0.0004,4]
[311211970,1704983458592,-2588.6,0.0004,5]
[311211971,1704983458602,-500.0,0.0004,4]
[311211972,1704983458611,-4816.19,0.0004,4]
[311211973,1704983458621,-280.57385741,0.0004,7]
[311211974,1704983458631,-500.0,0.0004,4]
[311211975,1704983458641,-500.0,0.0004,4]
[311211976,1704983458651,-733.7,0.0004,4]
[311211977,1704983458661,-500.0,0.0004,4]
[311211978,1704983458671,-670.14705,0.0004,7]
[311211979,1704983458681,-670.14705,0.0004,7]
[311211980,1704983458691,-500.0,0.0004,4]
[311211981,1704983458701,-4054.85,0.0004,4]
[311211982,1704983458711,-833.14,0.0004,4]
[311211983,1704983458720,-500.0,0.0004,4]
[311211984,1704983458730,-500.0,0.0004,4]
[311211985,1704983458740,-500.0,0.0004,4]
[311211986,1704983458753,-500.0,0.0004,4]
[311211987,1704983458762,-500.0,0.0004,4]
[311211988,1704983458773,-500.0,0.0004,4]
[311211989,1704983458782,-500.0,0.0004,4]
[311211990,1704983458793,-500.0,0.0004,4]
[311211991,1704983458802,-860.27,0.0004,4]
[311211992,1704983458812,-500.0,0.0004,4]
[311211993,1704983458822,-500.0,0.0004,4]
[311211994,1704983458836,-203.0,0.00040029,10]
[311211995,1704983458845,-150.0,0.00040041,7]
[311211996,1704983458855,-5238.33447936,0.00040046,13]
[311211997,1704983458864,-1502.56943109,0.000401,9]
[311211998,1704983458874,-151.65502897,0.00040125,7]
[311211999,1704983458883,-151.0,0.00040273,7]
[311212000,1704983458893,-179.596338,0.00040273,7]
[311212001,1704983458902,-151.0,0.00040273,7]
[311212002,1704983458911,-151.0,0.00040273,7]
[311212003,1704983458921,-500.0,0.00040273,4]
[311212004,1704983458932,-500.0,0.00040273,7]
[311212005,1704983458941,-500.0,0.00040273,4]
[311212006,1704983458951,-500.0,0.00040273,4]
[311212007,1704983458961,-156.15,0.00040273,4]
[311212008,1704983458970,-500.0,0.00040273,4]
[311212009,1704983458980,-500.0,0.00040273,4]
[311212010,1704983458989,-968.57,0.00040273,4]
[311212011,1704983458999,-356.71,0.00040273,4]
[311212012,1704983459009,-432.64561227,0.00040273,4]
[311212013,1704983459018,-846.71,0.00040273,4]
[311212014,1704983459028,-505.5,0.00040273,4]
[311212015,1704983459037,-1458.29,0.00040273,4]
[311212016,1704983459047,-500.0,0.00040273,4]
[311212017,1704983459057,-500.0,0.00040273,4]
[311212018,1704983459066,-752.08,0.00040273,4]
[311212019,1704983459075,-500.0,0.00040273,4]
[311212020,1704983459088,-500.0,0.00040273,4]
[311212021,1704983459098,-500.0,0.00040273,4]
[311212022,1704983459108,-500.0,0.00040273,4]
[311212023,1704983459117,-500.0,0.00040273,5]
[311212024,1704983459127,-500.0,0.00040273,4]
[311212025,1704983459137,-500.0,0.00040273,4]
[311212026,1704983459147,-500.0,0.00040273,4]
[311212027,1704983459157,-500.0,0.00040273,4]
[311212028,1704983459166,-509.67,0.00040273,4]
[311212029,1704983459176,-981.28,0.00040273,4]
[311212030,1704983459185,-500.0,0.00040273,4]
[311212031,1704983459195,-500.0,0.00040273,4]
[311212032,1704983459204,-500.0,0.00040273,4]
[311212033,1704983459213,-500.0,0.00040273,4]
[311212034,1704983459223,-660.19,0.00040273,4]
[311212035,1704983459233,-500.0,0.00040273,4]
[311212036,1704983459243,-539.09,0.00040273,4]
[311212037,1704983459253,-500.0,0.00040273,4]
[311212038,1704983459262,-500.0,0.00040273,4]
[311212039,1704983459272,-500.0,0.00040273,4]
[311212040,1704983459281,-435.39,0.00040273,4]
[311212041,1704983459291,-1453.5,0.00040273,4]
[311212042,1704983459300,-501.7,0.00040273,4]
[311212043,1704983459309,-500.0,0.00040273,4]
[311212044,1704983459318,-500.0,0.00040273,4]
[311212045,1704983459329,-500.0,0.00040273,4]
[311212046,1704983459340,-500.0,0.00040273,4]
[311212047,1704983459349,-500.0,0.00040273,4]
[311212048,1704983459359,-233.61,0.00040273,4]
[311212049,1704983459369,-500.0,0.00040273,4]
[311212050,1704983459379,-531.16,0.00040273,4]
[311212051,1704983459389,-500.0,0.00040273,4]
[311212052,1704983459399,-500.0,0.00040273,4]
[311212053,1704983459410,-500.0,0.00040273,4]
[311212054,1704983459420,-628.47,0.00040273,4]
[311212055,1704983459430,-2588.6,0.00040273,5]
[311212056,1704983459441,-500.0,0.00040273,4]
[311212057,1704983459451,-4816.19,0.00040273,4]
[311212058,1704983459462,-500.0,0.00040273,4]
[311212059,1704983459473,-500.0,0.00040273,4]
[311212060,1704983459483,-733.7,0.00040273,4]
[311212061,1704983459492,-500.0,0.00040273,4]
[311212062,1704983459502,-500.0,0.00040273,4]
[311212063,1704983459512,-4054.85,0.00040273,4]
[311212064,1704983459521,-833.14,0.00040273,4]
[311212065,1704983459531,-500.0,0.00040273,4]
[311212066,1704983459540,-500.0,0.00040273,4]
[311212067,1704983459550,-500.0,0.00040273,4]
[311212068,1704983459559,-500.0,0.00040273,4]
[311212069,1704983459569,-500.0,0.00040273,4]
[311212070,1704983459581,-500.0,0.00040273,4]
[311212071,1704983459590,-500.0,0.00040273,4]
[311212072,1704983459599,-860.27,0.00040273,4]
[311212073,1704983459608,-500.0,0.00040273,4]
[311212074,1704983459617,-500.0,0.00040273,4]
[311212075,1704983459626,-1411.20501718,0.00040291,2]
[311212076,1704983459636,-1871.62,0.000403,7]
[311212077,1704983459646,-409.14,0.00040349,15]
[311212078,1704983459656,-155.0,0.0004037,2]
[311212079,1704983459665,-533.91695976,0.0004038,10]
[311212080,1704983459675,-5844.14,0.000404,7]
[311212081,1704983459684,-8259.38,0.000404,7]
[311212082,1704983459694,-1732.768818,0.000404,2]
[311212083,1704983459703,-1000.0,0.000404,2]
[311212084,1704983459713,-153.84,0.0004043,2]
[311212085,1704983459723,-151.0,0.00040479,2]
[311212086,1704983459732,-1233.98160613,0.00040507,2]
[311212087,1704983459742,-5238.33447936,0.00040529,14]
[311212088,1704983459757,-150.0,0.00040546,3]
[311212089,1704983459767,-150.0,0.00040546,3]
[311212090,1704983459776,-500.0,0.00040547,7]
[311212091,1704983459785,-500.0,0.00040547,4]
[311212092,1704983459795,-209.38398433,0.00040547,4]
[311212093,1704983459805,-968.57,0.00040547,4]
[311212094,1704983459818,-846.71,0.00040547,4]
[311212095,1704983459831,-505.5,0.00040547,4]
[311212096,1704983459841,-1458.29,0.00040547,4]
[311212097,1704983459851,-500.0,0.00040547,4]
[311212098,1704983459861,-500.0,0.00040547,4]
[311212099,1704983459871,-752.08,0.00040547,4]
[311212100,1704983459881,-500.0,0.00040547,4]
[311212101,1704983459890,-500.0,0.00040547,4]
[311212102,1704983459901,-500.0,0.00040547,4]
[311212103,1704983459910,-500.0,0.00040547,4]
[311212104,1704983459919,-500.0,0.00040547,5]
[311212105,1704983459928,-500.0,0.00040547,4]
[311212106,1704983459938,-500.0,0.00040547,4]
[311212107,1704983459947,-500.0,0.00040547,4]
[311212108,1704983459956,-500.0,0.00040547,4]
[311212109,1704983459966,-981.28,0.00040547,4]
[311212110,1704983459975,-500.0,0.00040547,4]
[311212111,1704983459985,-500.0,0.00040547,4]
[311212112,1704983459994,-571.86,0.00040547,4]
[311212113,1704983460003,-660.19,0.00040547,4]
[311212114,1704983460013,-500.0,0.00040547,4]
[311212115,1704983460022,-500.0,0.00040547,4]
[311212116,1704983460031,-500.0,0.00040547,4]
[311212117,1704983460041,-500.0,0.00040547,4]
[311212118,1704983460051,-1453.5,0.00040547,4]
[311212119,1704983460063,-501.7,0.00040547,4]
[311212120,1704983460073,-500.0,0.00040547,4]
[311212121,1704983460086,-500.0,0.00040547,4]
[311212122,1704983460096,-500.0,0.00040547,4]
[311212123,1704983460105,-500.0,0.00040547,4]
[311212124,1704983460247,-338.95,0.00040547,4]
[311212125,1704983460259,-500.0,0.00040547,4]
[311212126,1704983460269,-500.0,0.00040547,4]
[311212127,1704983460280,-628.47,0.00040547,4]
[311212128,1704983460290,-2588.6,0.00040547,5]
[311212129,1704983460300,-500.0,0.00040547,4]
[311212130,1704983460310,-4816.19,0.00040547,4]
[311212131,1704983460320,-500.0,0.00040547,4]
[311212132,1704983460332,-500.0,0.00040547,4]
[311212133,1704983460342,-733.7,0.00040547,4]
[311212134,1704983460352,-500.0,0.00040547,4]
[311212135,1704983460362,-500.0,0.00040547,4]
[311212136,1704983460373,-4054.85,0.00040547,4]
[311212137,1704983460382,-833.14,0.00040547,4]
[311212138,1704983460392,-500.0,0.00040547,4]
[311212139,1704983460403,-500.0,0.00040547,4]
[311212140,1704983460413,-500.0,0.00040547,4]
[311212141,1704983460423,-500.0,0.00040547,4]
[311212142,1704983460434,-500.0,0.00040547,4]
[311212143,1704983460444,-860.27,0.00040547,4]
[311212144,1704983460455,-500.0,0.00040547,4]
[311212145,1704983460465,-500.0,0.00040547,4]
[311212146,1704983460475,-632.74,0.0004055,2]
[311212147,1704983460485,-5480.0,0.000406,3]
[311212148,1704983460495,-150.46862198,0.00040681,9]
[311212149,1704983460505,-420.33,0.00040682,2]
[311212150,1704983460514,-853.22,0.00040682,2]
[311212151,1704983460523,-151.52,0.00040682,2]
[311212152,1704983460533,-356.23,0.00040682,2]
[311212153,1704983460542,-640.66,0.00040682,2]
[311212154,1704983460552,-300.0,0.00040682,2]
[311212155,1704983460561,-6839.50522379,0.00040685,2]
[311212156,1704983460570,-1411.20501718,0.00040719,2]
[311212157,1704983460583,-287.7,0.00040733,2]
[311212158,1704983460593,-2036.0,0.00040755,10]
[311212159,1704983460602,-158.73998173,0.00040755,2]
[311212160,1704983460611,-521.92,0.00040761,2]
[311212161,1704983460621,-400.0,0.00040767,120]
[311212162,1704983460630,-1233.98160613,0.00040775,2]
[311212163,1704983460640,-350.0,0.00040795,120]
[311212164,1704983460650,-1871.62,0.000408,7]
[311212165,1704983460660,-401.14252877,0.00040821,7]
[311212166,1704983460670,-500.0,0.00040821,4]
[311212167,1704983460681,-968.57,0.00040821,4]
[311212168,1704983460692,-846.71,0.00040821,4]
[311212169,1704983460702,-505.5,0.00040821,4]
[311212170,1704983460712,-1458.29,0.00040821,4]
[311212171,1704983460721,-580.42,0.00040821,4]
[311212172,1704983460731,-500.0,0.00040821,4]
[311212173,1704983460741,-752.08,0.00040821,4]
[311212174,1704983460755,-500.0,0.00040821,4]
[311212175,1704983460765,-497.49,0.00040821,4]
[311212176,1704983460775,-337.46,0.00040821,4]
[311212177,1704983460786,-500.0,0.00040821,4]
[311212178,1704983460797,-500.0,0.00040821,5]
[311212179,1704983460806,-500.0,0.00040821,4]
[311212180,1704983460815,-474.87,0.00040821,4]
[311212181,1704983460825,-500.0,0.00040821,4]
[311212182,1704983460836,-500.0,0.00040821,4]
[311212183,1704983460845,-981.28,0.00040821,4]
[311212184,1704983460854,-267.96,0.00040821,4]
[311212185,1704983460864,-500.0,0.00040821,4]
[311212186,1704983460873,-660.19,0.00040821,4]
[311212187,1704983460883,-500.0,0.00040821,4]
[311212188,1704983460892,-500.0,0.00040821,4]
[311212189,1704983460903,-500.0,0.00040821,4]
[311212190,1704983460913,-190.35421368,0.00040821,4]
[311212191,1704983460923,-1453.5,0.00040821,4]
[311212192,1704983460932,-501.7,0.00040821,4]
[311212193,1704983460941,-500.0,0.00040821,4]
[311212194,1704983460952,-500.0,0.00040821,4]
[311212195,1704983460962,-500.0,0.00040821,4]
[311212196,1704983460971,-601.84,0.00040821,4]
[311212197,1704983460981,-500.0,0.00040821,4]
[311212198,1704983460991,-500.0,0.00040821,4]
[311212199,1704983461000,-628.47,0.00040821,4]
[311212200,1704983461010,-2588.6,0.00040821,5]
[311212201,1704983461020,-500.0,0.00040821,4]
[311212202,1704983461030,-4816.19,0.00040821,4]
[311212203,1704983461040,-500.0,0.00040821,4]
[311212204,1704983461049,-733.7,0.00040821,4]
[311212205,1704983461059,-500.0,0.00040821,4]
[311212206,1704983461069,-500.0,0.00040821,4]
[311212207,1704983461081,-4054.85,0.00040821,4]
[311212208,1704983461091,-833.14,0.00040821,4]
[311212209,1704983461101,-500.0,0.00040821,4]
[311212210,1704983461111,-261.41,0.00040821,4]
[311212211,1704983461121,-500.0,0.00040821,4]
[311212212,1704983461131,-500.0,0.00040821,4]
[311212213,1704983461141,-500.0,0.00040821,4]
[311212214,1704983461151,-860.27,0.00040821,4]
[311212215,1704983461162,-500.0,0.00040821,4]
[311212216,1704983461171,-500.0,0.00040821,4]
[311212217,1704983461181,-1235.66767552,0.00040868,2]
[311212218,1704983461191,-866.782748,0.00040868,2]
[311212219,1704983461201,-5353.58310578,0.00040868,2]
[311212220,1704983461211,-1664.67723713,0.00040868,2]
[311212221,1704983461221,-5844.14,0.000409,7]
[311212222,1704983461231,-8259.38,0.000409,7]
[311212223,1704983461241,-3150.0,0.000409,11]
[311212224,1704983461251,-200.0,0.000409,14]
[311212225,1704983461260,-1424.40657494,0.0004091,5]
[311212226,1704983461271,-10038.97862386,0.00040989,10]
[311212227,1704983461280,-3438.85999802,0.00041,4]
[311212228,1704983461289,-500.0,0.00041,30]
[311212229,1704983461299,-2575.55334972,0.00041,2]
[311212230,1704983461308,-500.0,0.00041,30]
[311212231,1704983461318,-500.0,0.00041,30]
[311212232,1704983461328,-500.0,0.00041,30]
[311212233,1704983461341,-1000.0,0.00041,120]
[311212234,1704983461351,-150.000001,0.00041,28]
[311212235,1704983461361,-216.48581801,0.00041,30]
[311212236,1704983461370,-157.0,0.00041,14]
[311212237,1704983461380,-2003.68,0.00041,2]
[311212238,1704983461391,-11494.58,0.00041,4]
[311212239,1704983461401,-500.0,0.00041,3]
[311212240,1704983461411,-301.14,0.00041,2]
[311212241,1704983461421,-153.3,0.00041,4]
[311212242,1704983461430,-153.3,0.00041,4]
[311212243,1704983461440,-153.3,0.00041,4]
[311212244,1704983461450,-153.3,0.00041,4]
[311212245,1704983461460,-153.3,0.00041,4]
[311212246,1704983461470,-153.3,0.00041,4]
[311212247,1704983461486,-153.3,0.00041,4]
[311212248,1704983461503,-153.3,0.00041,4]
[311212249,1704983461518,-153.3,0.00041,4]
[311212250,1704983461530,-153.3,0.00041,4]
[311212251,1704983461544,-153.3,0.00041,4]
[311212252,1704983461560,-153.3,0.00041,4]
[311212253,1704983461576,-153.3,0.00041,4]
[311212254,1704983461595,-605.823194,0.00041,4]
[311212255,1704983461609,-5238.33447936,0.00041013,15]
[311212256,1704983461621,-150.0,0.0004107,120]
[311212257,1704983461635,-150.0,0.0004108,120]
[311212258,1704983461649,-150.0,0.0004109,120]
[311212259,1704983461663,-281.89,0.0004109,120]
[311212260,1704983461679,-778.19019,0.00041094,7]
[311212261,1704983461691,-500.0,0.00041095,2]
[311212262,1704983461702,-500.0,0.00041095,30]
[311212263,1704983461718,-2564.85298841,0.00041095,120]
[311212264,1704983461733,-968.57,0.00041095,30]
[311212265,1704983461748,-846.71,0.00041095,30]
[311212266,1704983461762,-505.5,0.00041095,30]
[311212267,1704983461777,-1458.29,0.00041095,30]
[311212268,1704983461791,-170.23853735,0.00041095,30]
[311212269,1704983461806,-752.08,0.00041095,30]
[311212270,1704983461821,-500.0,0.00041095,30]
[311212271,1704983461837,-500.0,0.00041095,30]
[311212272,1704983461848,-500.0,0.00041095,5]
[311212273,1704983461859,-500.0,0.00041095,30]
[311212274,1704983461873,-500.0,0.00041095,30]
[311212275,1704983461886,-500.0,0.00041095,30]
[311212276,1704983461900,-1000.0,0.00041095,10]
[311212277,1704983461912,-1000.0,0.00041095,10]
[311212278,1704983461922,-1000.0,0.00041095,10]
[311212279,1704983461934,-1000.0,0.00041095,10]
[311212280,1704983461946,-1000.0,0.00041095,10]
[311212281,1704983461959,-1000.0,0.00041095,10]
[311212282,1704983461971,-1000.0,0.00041095,10]
[311212283,1704983461983,-1000.0,0.00041095,10]
[311212284,1704983461995,-981.28,0.00041095,30]
[311212285,1704983462008,-500.0,0.00041095,30]
[311212286,1704983462020,-660.19,0.00041095,30]
[311212287,1704983462032,-270.14,0.00041095,30]